bitfinex-derivatives/quotes_BTCF0:USTF0_20241117
["timestamp","ask_amount","ask_price","bid_price","bid_amount"]
[1731827188635,0.52239303,90591.0,90584.0,0.0051]
[1731827188951,0.0637,90590.0,90583.0,0.0552]
[1731827189146,0.055198,90588.0,90583.0,0.0552]
[1731827189334,0.055198,90587.0,90583.0,0.0552]
[1731827190031,0.0637,90590.0,90580.0,0.00011394]
[1731827190341,0.3608,90582.0,90580.0,0.00011394]
[1731827191238,0.3312,90581.0,90580.0,0.00011394]
[1731827191429,0.3625,90581.0,90580.0,0.00011394]
[1731827192427,0.3625,90581.0,90580.0,0.05531594]
[1731827193341,0.3608,90582.0,90580.0,0.05531594]
[1731827194653,0.3608,90582.0,90580.0,0.13572594]
[1731827195551,0.3608,90582.0,90580.0,0.15779394]
[1731827195552,0.055201,90581.0,90580.0,0.15779394]
[1731827196627,0.055201,90581.0,90580.0,0.14979394]
[1731827197441,0.055201,90581.0,90580.0,0.02269567]
[1731827198845,0.416001,90581.0,90580.0,0.02269567]
[1731827202645,0.3608,90581.0,90580.0,0.02269567]
[1731827208340,0.52543227,90581.0,90580.0,0.02269567]
[1731827208751,0.3608,90581.0,90580.0,0.02269567]
[1731827209143,0.52566185,90581.0,90580.0,0.02269567]
[1731827209454,0.41450631,90581.0,90580.0,0.02269567]
[1731827210239,0.47750631,90581.0,90580.0,0.02269567]
[1731827211770,0.47750631,90581.0,90580.0,0.01469567]
[1731827212057,0.47750952,90581.0,90580.0,0.01469567]
[1731827212245,0.61910309,90581.0,90580.0,0.01469567]
[1731827212646,0.47750952,90581.0,90580.0,0.01469567]
[1731827213648,0.61926428,90581.0,90580.0,0.01469567]
[1731827216558,0.95046428,90581.0,90580.0,0.01469567]
[1731827216858,0.95046428,90581.0,90574.0,0.0051]
[1731827216859,0.055205,90575.0,90574.0,0.0051]
[1731827217150,0.055209,90569.0,90568.0,0.00522002]
[1731827217343,0.055209,90569.0,90568.0,0.00012002]
[1731827217344,0.10891852,90569.0,90568.0,0.00012002]
[1731827217544,0.25067328,90569.0,90568.0,0.00012002]
[1731827219651,0.24937816,90569.0,90568.0,0.00012002]
[1731827221056,0.25544278,90569.0,90568.0,0.00012002]
[1731827221953,0.48684973,90569.0,90568.0,0.00012002]
[1731827222555,0.2015289,90569.0,90568.0,0.00012002]
[1731827222747,0.2015289,90569.0,90568.0,0.11862902]
[1731827222955,0.2015289,90570.0,90568.0,0.11862902]
[1731827225342,0.2015289,90570.0,90568.0,0.14992902]
[1731827225851,0.05371405,90569.0,90568.0,0.14992902]
[1731827226050,0.05371405,90570.0,90568.0,0.14992902]
[1731827226250,0.05371405,90569.0,90568.0,0.09472002]
[1731827226447,0.05371405,90569.0,90568.0,0.14992402]
[1731827226643,0.19822462,90569.0,90568.0,0.14192402]
[1731827226846,0.05371405,90569.0,90568.0,0.14192402]
[1731827227254,0.05371405,90569.0,90568.0,0.055204]
[1731827227255,0.25195006,90569.0,90568.0,0.055204]
[1731827227463,0.05371405,90569.0,90567.0,0.04010349]
[1731827227649,0.19823601,90573.0,90570.0,0.055203]
[1731827227849,0.19823601,90573.0,90572.0,0.055201]
[1731827228164,0.05370427,90573.0,90572.0,0.055201]
[1731827228657,0.19823601,90575.0,90572.0,0.055201]
[1731827229259,0.25194028,90575.0,90572.0,0.055201]
[1731827229461,0.05370427,90574.0,90572.0,0.055201]
[1731827229763,0.05370427,90573.0,90572.0,0.055201]
[1731827230148,0.25194028,90576.0,90572.0,0.055201]
[1731827230553,0.05370427,90575.0,90572.0,0.055201]
[1731827230851,0.05370427,90574.0,90568.0,0.03538991]
[1731827231051,0.16520226,90571.0,90568.0,0.09059391]
[1731827232157,0.0552,90575.0,90568.0,0.09059391]
[1731827232158,0.16520226,90570.0,90568.0,0.09059391]
[1731827232356,0.16520226,90571.0,90568.0,0.08549391]
[1731827232957,0.16520226,90571.0,90568.0,0.03028991]
[1731827233261,0.16520226,90571.0,90569.0,0.055203]
[1731827234059,0.16520226,90572.0,90569.0,0.055203]
[1731827234657,0.16520226,90572.0,90568.0,0.03028991]
[1731827234966,0.16520226,90572.0,90570.0,0.055203]
[1731827236952,0.16522271,90571.0,90570.0,0.055203]
[1731827237354,0.055202,90571.0,90568.0,0.03028991]
[1731827237570,0.16522554,90570.0,90568.0,0.03028991]
[1731827238067,0.16522554,90570.0,90568.0,0.08549391]
[1731827238969,0.16522554,90569.0,90568.0,0.08549391]
[1731827239163,0.16522554,90570.0,90568.0,0.08549391]
[1731827239974,0.16522554,90569.0,90568.0,0.08549391]
[1731827240269,0.16522554,90570.0,90568.0,0.08549391]
[1731827241265,0.16522554,90571.0,90570.0,0.055203]
[1731827241674,0.16522554,90571.0,90570.0,0.047203]
[1731827243075,0.19823601,90577.0,90570.0,0.047203]
[1731827243270,0.16525188,90571.0,90570.0,0.047203]
[1731827243458,0.19823601,90577.0,90570.0,0.047203]
[1731827243867,0.0552,90574.0,90570.0,0.047203]
[1731827244075,0.05370472,90573.0,90570.0,0.047203]
[1731827244272,0.16524809,90571.0,90570.0,0.047203]
[1731827244671,0.0552,90574.0,90570.0,0.047203]
[1731827244878,0.16525273,90573.0,90570.0,0.047203]
[1731827245670,0.16525273,90572.0,90570.0,0.047203]
[1731827245869,0.16525273,90573.0,90570.0,0.047203]
[1731827246267,0.16525273,90573.0,90568.0,0.03028991]
[1731827246576,0.16525273,90573.0,90571.0,0.055202]
[1731827247468,0.16525273,90572.0,90571.0,0.055202]
[1731827249375,0.055199,90576.0,90571.0,0.055202]
[1731827249570,0.05370408,90575.0,90571.0,0.055202]
[1731827251965,0.25194009,90574.0,90571.0,0.055202]
[1731827252164,0.055201,90572.0,90568.0,8.991e-05]
[1731827252364,0.05370408,90571.0,90568.0,8.991e-05]
[1731827252587,0.055201,90572.0,90568.0,8.991e-05]
[1731827252588,0.05370408,90570.0,90568.0,8.991e-05]
[1731827252876,0.05370408,90569.0,90568.0,8.991e-05]
[1731827253087,0.05370408,90569.0,90557.0,0.20248178]
[1731827253088,0.48438018,90569.0,90557.0,0.20248178]
[1731827253282,0.3608,90558.0,90540.0,0.00064]
[1731827253470,0.16536512,90541.0,90530.0,0.055227]
[1731827253661,0.13217845,90535.0,90530.0,0.055227]
[1731827253863,0.22058612,90540.0,90527.0,0.0971]
[1731827253864,0.13217845,90534.0,90532.0,0.055226]
[1731827254073,0.19843814,90545.0,90527.0,0.0971]
[1731827254074,0.16536512,90536.0,90534.0,0.055224]
[1731827254269,0.16548163,90537.0,90536.0,0.055223]
[1731827254474,0.00011651,90537.0,90533.0,0.43080757]
[1731827254802,0.00011651,90537.0,90534.0,0.055224]
[1731827255278,0.00011651,90537.0,90535.0,0.055224]
[1731827255473,0.13205972,90536.0,90535.0,0.055224]
[1731827255867,0.13205906,90536.0,90535.0,0.055224]
[1731827256376,0.03205906,90536.0,90535.0,0.055224]
[1731827256675,0.00011651,90537.0,90535.0,0.378584]
[1731827256868,0.22057812,90553.0,90552.0,0.055214]
[1731827257072,0.055213,90553.0,90552.0,0.055214]
[1731827258080,0.00011044,90553.0,90552.0,0.055214]
[1731827263672,0.00165731,90562.0,90561.0,0.055208]
[1731827263867,0.00165731,90562.0,90561.0,0.416008]
[1731827264679,8.566e-05,90568.0,90567.0,0.055204]
[1731827267487,0.055199,90577.0,90575.0,0.0552]
[1731827267683,0.055199,90577.0,90561.0,0.41623144]
[1731827267684,0.16536512,90580.0,90577.0,0.055198]
[1731827267888,0.16536512,90580.0,90576.0,0.0698761]
[1731827268085,0.22056112,90581.0,90578.0,0.055198]
[1731827268382,9.427e-05,90580.0,90578.0,0.055198]
[1731827268689,0.05529127,90580.0,90578.0,0.055198]
[1731827268889,0.22065639,90580.0,90578.0,0.055198]
[1731827269074,0.16536512,90579.0,90578.0,0.055198]
[1731827269678,0.22065639,90580.0,90578.0,0.055198]
[1731827270192,0.16545939,90580.0,90578.0,0.055198]
[1731827270571,9.427e-05,90580.0,90579.0,0.3608]
[1731827271590,9.427e-05,90580.0,90579.0,0.3528]
[1731827272283,0.22055612,90590.0,90579.0,0.3528]
[1731827272484,0.22055612,90590.0,90583.0,0.0698761]
[1731827272791,0.055191,90589.0,90587.0,0.055192]
[1731827273376,0.00012303,90588.0,90587.0,0.055192]
[1731827276579,0.00012303,90588.0,90579.0,0.3528]
[1731827276786,0.00012303,90588.0,90581.0,0.055196]
[1731827277579,0.00012303,90588.0,90580.0,0.08528]
[1731827277798,0.055192,90587.0,90582.0,0.055195]
[1731827278902,0.055192,90587.0,90583.0,0.055194]
[1731827280409,0.055194,90585.0,90579.0,0.08528]
[1731827281085,0.055194,90585.0,90581.0,0.055196]
[1731827281899,0.10642439,90585.0,90577.0,0.3608]
[1731827282193,0.10642439,90585.0,90564.0,0.0949]
[1731827282194,0.055197,90579.0,90575.0,0.08528]
[1731827282387,0.10642439,90578.0,90571.0,0.08528]
[1731827282598,0.0552,90574.0,90571.0,0.08528]
[1731827282893,0.0552,90574.0,90568.0,0.05685912]
[1731827283102,0.0323,90573.0,90568.0,0.05685912]
[1731827286300,0.0323,90573.0,90568.0,0.00165612]
[1731827286483,0.055203,90570.0,90568.0,0.00165612]
[1731827286688,0.0323,90573.0,90566.0,0.35445612]
[1731827286689,0.055204,90568.0,90566.0,0.35445612]
[1731827289490,0.22056912,90568.0,90566.0,0.35445612]
[1731827289708,0.16536512,90568.0,90566.0,0.35445612]
[1731827290001,0.22056912,90568.0,90566.0,0.35445612]
[1731827290893,0.22056912,90568.0,90567.0,0.0605]
[1731827291499,0.46971092,90568.0,90567.0,0.0605]
[1731827291702,0.62695219,90568.0,90563.0,0.0051]
[1731827291903,0.16163039,90564.0,90563.0,0.0051]
[1731827292291,0.37257858,90564.0,90563.0,0.0051]
[1731827292809,0.33606183,90564.0,90563.0,0.0051]
[1731827293891,0.10891292,90564.0,90563.0,0.0051]
[1731827294088,0.17882056,90564.0,90563.0,0.0051]
[1731827294291,0.32321264,90564.0,90563.0,0.0051]
[1731827294504,0.17882056,90564.0,90563.0,0.0051]
[1731827296204,0.32321264,90564.0,90563.0,0.0051]
[1731827296403,0.17882056,90564.0,90563.0,0.0051]
[1731827296596,0.37691956,90564.0,90563.0,0.0051]
[1731827297109,0.17882056,90564.0,90563.0,0.0051]
[1731827298200,0.19502128,90564.0,90563.0,0.0051]
[1731827298396,0.2487282,90564.0,90563.0,0.0051]
[1731827298803,0.30071606,90564.0,90563.0,0.0051]
[1731827299507,0.30072687,90564.0,90563.0,0.0051]
[1731827300009,0.4985563,90564.0,90563.0,0.0051]
[1731827300222,0.30072687,90564.0,90563.0,0.0051]
[1731827300506,0.45640021,90564.0,90563.0,0.0051]
[1731827301306,0.34987707,90564.0,90563.0,0.0051]
[1731827301511,0.34987707,90564.0,90542.0,0.05397617]
[1731827301810,0.055215,90549.0,90542.0,0.05397617]
[1731827302912,0.3608,90553.0,90537.0,0.18038]
[1731827303105,0.055217,90546.0,90537.0,0.235602]
[1731827303301,0.055217,90546.0,90539.0,0.055221]
[1731827303509,0.3608,90553.0,90539.0,0.055221]
[1731827303715,0.055217,90546.0,90539.0,0.055221]
[1731827303914,0.055217,90546.0,90537.0,0.18038]
[1731827304113,0.055217,90546.0,90540.0,0.055221]
[1731827304623,0.055217,90546.0,90541.0,0.05522]
[1731827306209,0.41583459,90553.0,90537.0,0.0951]
[1731827306410,0.16174514,90538.0,90537.0,0.0302]
[1731827306622,0.055224,90535.0,90533.0,0.00013147]
[1731827309298,9.715e-05,90534.0,90533.0,0.00013147]
[1731827310318,0.36089715,90534.0,90533.0,0.00013147]
[1731827311214,0.52568707,90534.0,90533.0,0.00013147]
[1731827311424,0.36089715,90534.0,90533.0,0.00013147]
[1731827311613,0.52568707,90534.0,90533.0,0.00013147]
[1731827312107,0.41674675,90534.0,90533.0,0.00013147]
[1731827312313,0.4704808,90534.0,90533.0,0.00013147]
[1731827313516,0.73142871,90534.0,90533.0,1.126e-05]
[1731827313821,0.5336808,90534.0,90533.0,1.126e-05]
[1731827314807,0.68814787,90534.0,90533.0,1.126e-05]
[1731827315901,1.01950787,90534.0,90533.0,1.126e-05]
[1731827316105,1.01950787,90534.0,90523.0,0.00165618]
[1731827316106,0.055225,90533.0,90523.0,0.00165618]
[1731827316300,0.416031,90524.0,90523.0,0.00165618]
[1731827316506,0.416031,90524.0,90502.0,0.05560642]
[1731827316507,0.49957405,90524.0,90502.0,0.05560642]
[1731827316702,0.055238,90512.0,90502.0,0.05560642]
[1731827316917,0.055238,90512.0,90501.0,0.151644]
[1731827318514,0.055238,90512.0,90502.0,0.055244]
[1731827319219,0.055238,90512.0,90503.0,0.055243]
[1731827319414,0.3608,90513.0,90506.0,0.055241]
[1731827319612,0.13166945,90516.0,90507.0,0.055241]
[1731827320002,0.13166945,90517.0,90509.0,0.3608]
[1731827320211,0.13166945,90516.0,90507.0,0.055241]
[1731827320416,0.13166945,90516.0,90501.0,0.0964]
[1731827320417,0.13166945,90517.0,90508.0,0.3608]
[1731827320716,0.416039,90511.0,90501.0,0.0964]
[1731827321123,0.3608,90511.0,90501.0,0.0964]
[1731827321319,0.49246945,90511.0,90501.0,0.0964]
[1731827321506,0.13166945,90510.0,90501.0,0.0964]
[1731827321710,0.055242,90507.0,90501.0,0.0964]
[1731827322112,0.13166945,90510.0,90501.0,0.0964]
[1731827322409,0.49246945,90511.0,90501.0,0.151644]
[1731827322713,0.055243,90505.0,90501.0,0.0964]
[1731827323617,0.49246945,90511.0,90501.0,0.0964]
[1731827323618,0.05524,90510.0,90501.0,0.0964]
[1731827323804,0.49322945,90511.0,90501.0,0.0964]
[1731827324009,0.49246945,90511.0,90501.0,0.0964]
[1731827324318,0.055241,90507.0,90501.0,0.0964]
[1731827325825,0.055243,90505.0,90501.0,0.0964]
[1731827327023,0.13166945,90509.0,90501.0,0.151645]
[1731827327226,0.055242,90507.0,90501.0,0.151645]
[1731827327416,0.18691145,90507.0,90501.0,0.151645]
[1731827327729,0.125218,90502.0,90500.0,0.1001149]
[1731827328036,0.25688745,90502.0,90500.0,0.1001149]
[1731827328323,0.13164148,90501.0,90500.0,0.00902562]
[1731827328514,0.18688548,90502.0,90500.0,0.00902562]
[1731827328714,0.055244,90502.0,90500.0,0.00902562]
[1731827328921,0.13164148,90503.0,90500.0,0.00902562]
[1731827329315,0.13164148,90504.0,90500.0,0.00902562]
[1731827329631,0.13164148,90504.0,90500.0,0.06427062]
[1731827329849,0.055243,90505.0,90500.0,0.06427062]
[1731827329850,0.13164148,90503.0,90500.0,0.06427062]
[1731827330315,0.16458682,90509.0,90500.0,0.06427062]
[1731827330316,0.18688448,90504.0,90500.0,0.06427062]
[1731827330517,0.13164148,90503.0,90500.0,0.06427062]
[1731827330924,0.18688548,90503.0,90500.0,0.06427062]
[1731827331427,0.13164148,90502.0,90500.0,0.06427062]
[1731827331737,0.13164148,90504.0,90502.0,0.055244]
[1731827332025,0.13164148,90505.0,90503.0,0.149943]
[1731827332229,0.13164148,90506.0,90504.0,0.055243]
[1731827332426,0.13164148,90505.0,90504.0,0.055243]
[1731827333114,0.055241,90508.0,90504.0,0.055243]
[1731827333830,0.055241,90507.0,90504.0,0.055243]
[1731827334327,0.055242,90506.0,90504.0,0.055243]
[1731827334835,0.055243,90504.0,90503.0,0.0947]
[1731827335527,0.055244,90503.0,90500.0,0.00102562]
[1731827335831,0.16458682,90507.0,90500.0,0.00102562]
[1731827335832,0.18711545,90501.0,90500.0,0.00102562]
[1731827336127,0.055245,90501.0,90500.0,0.00102562]
[1731827337531,0.16458682,90502.0,90500.0,0.00102562]
[1731827338522,0.11077598,90506.0,90500.0,0.00102562]
[1731827338523,0.16502231,90501.0,90500.0,0.00102562]
[1731827339529,0.05374523,90501.0,90500.0,0.00102562]
[1731827339734,0.25128311,90505.0,90500.0,0.00102562]
[1731827340031,0.05374523,90504.0,90500.0,0.00102562]
[1731827340231,0.19753788,90505.0,90500.0,0.00102562]
[1731827340232,0.05374523,90503.0,90500.0,0.00102562]
[1731827340436,0.05374523,90502.0,90500.0,0.00102562]
[1731827340627,0.05374523,90501.0,90500.0,0.00102562]
[1731827340824,0.19753788,90504.0,90500.0,0.00102562]
[1731827341340,0.19753788,90503.0,90500.0,0.00102562]
[1731827342239,0.05374523,90502.0,90500.0,0.05627062]
[1731827342429,0.19753788,90503.0,90501.0,0.0976]
[1731827343240,0.25128255,90502.0,90501.0,0.0976]
[1731827343539,0.05374467,90502.0,90501.0,0.0976]
[1731827343833,0.28752142,90510.0,90500.0,0.00102562]
[1731827344047,0.055245,90502.0,90500.0,0.00102562]
[1731827344232,0.05374467,90501.0,90500.0,0.00102562]
[1731827346632,0.05374467,90501.0,90497.0,0.40971262]
[1731827346851,0.19840078,90500.0,90497.0,0.40907262]
[1731827347139,0.19840078,90499.0,90497.0,0.40907262]
[1731827347540,0.05374467,90498.0,90497.0,0.40907262]
[1731827347849,0.05374467,90498.0,90497.0,0.3608]
[1731827348139,0.05374467,90498.0,90494.0,9.839e-05]
[1731827348341,0.1653342,90495.0,90494.0,9.839e-05]
[1731827349342,0.05374467,90498.0,90494.0,9.839e-05]
[1731827349646,0.055246,90499.0,90494.0,9.839e-05]
[1731827349647,0.16534928,90495.0,90494.0,9.839e-05]
[1731827350344,0.05374631,90495.0,90494.0,9.839e-05]
[1731827350645,0.05374631,90498.0,90494.0,9.839e-05]
[1731827351040,0.055247,90497.0,90494.0,9.839e-05]
[1731827351235,0.05374631,90496.0,90494.0,9.839e-05]
[1731827351439,0.10899431,90496.0,90494.0,9.839e-05]
[1731827351741,0.05374631,90495.0,90494.0,9.839e-05]
[1731827352533,0.19840078,90495.0,90494.0,9.839e-05]
[1731827352729,0.05374631,90495.0,90494.0,9.839e-05]
[1731827353541,0.19848711,90495.0,90494.0,9.839e-05]
[1731827353746,0.25223342,90495.0,90494.0,9.839e-05]
[1731827353931,0.05374886,90495.0,90494.0,9.839e-05]
[1731827354542,0.25375283,90496.0,90494.0,9.839e-05]
[1731827354749,0.05374886,90495.0,90494.0,9.839e-05]
[1731827355431,0.19850483,90495.0,90494.0,9.839e-05]
[1731827355627,0.05374886,90495.0,90494.0,9.839e-05]
[1731827355836,0.20600006,90495.0,90494.0,9.839e-05]
[1731827356235,0.2059844,90495.0,90494.0,9.839e-05]
[1731827357248,0.2702844,90495.0,90494.0,9.839e-05]
[1731827358234,0.11804886,90495.0,90494.0,1.012e-05]
[1731827358434,0.27080668,90495.0,90494.0,1.012e-05]
[1731827359436,0.60232668,90495.0,90494.0,1.012e-05]
[1731827361533,0.055255,90484.0,90473.0,0.05402844]
[1731827361843,0.13218694,90475.0,90473.0,0.05402844]
[1731827362138,0.13218694,90476.0,90473.0,0.05402844]
[1731827362336,0.13218694,90478.0,90473.0,0.05402844]
[1731827362537,0.13218694,90478.0,90473.0,0.0541553]
[1731827363551,0.19693368,90483.0,90473.0,0.0541553]
[1731827363552,0.13218694,90479.0,90473.0,0.0541553]
[1731827363849,0.13218694,90478.0,90473.0,0.0541553]
[1731827364149,0.13218694,90479.0,90473.0,0.0541553]
[1731827364541,0.13218694,90477.0,90473.0,0.0541553]
[1731827365640,0.13218694,90477.0,90474.0,0.055261]
[1731827366944,0.055261,90475.0,90473.0,0.00012686]
[1731827367744,0.18744794,90475.0,90473.0,0.00012686]
[1731827368638,0.055261,90475.0,90473.0,0.00012686]
[1731827369041,0.18744794,90475.0,90473.0,0.00012686]
[1731827369643,0.13218694,90476.0,90473.0,0.00012686]
[1731827369948,0.055261,90474.0,90473.0,0.00012686]
[1731827370746,0.18744794,90474.0,90473.0,0.00012686]
[1731827371444,0.18736459,90474.0,90473.0,0.00012686]
[1731827371851,0.13210359,90474.0,90473.0,0.00012686]
[1731827372553,0.13210253,90474.0,90473.0,0.00012686]
[1731827372938,0.13222618,90475.0,90473.0,0.00012686]
[1731827373446,0.13210253,90474.0,90473.0,0.00012686]
[1731827375550,0.18736353,90474.0,90473.0,0.00012686]
[1731827376551,0.055261,90474.0,90469.0,0.00212686]
[1731827376745,0.13211081,90472.0,90469.0,0.00212686]
[1731827376940,0.13211081,90473.0,90469.0,0.00212686]
[1731827377252,0.13211081,90472.0,90469.0,0.00212686]
[1731827377451,0.13211081,90471.0,90469.0,0.00212686]
[1731827377754,0.10902821,90470.0,90469.0,0.00212686]
[1731827378047,0.25354441,90470.0,90469.0,0.00212686]
[1731827378355,0.6387234,90470.0,90469.0,0.00212686]
[1731827378556,0.44062821,90470.0,90469.0,5.078e-05]
[1731827379256,0.10902821,90470.0,90469.0,5.078e-05]
[1731827379557,0.58492503,90470.0,90469.0,5.078e-05]
[1731827379746,0.63868924,90470.0,90469.0,5.078e-05]
[1731827379946,0.44062821,90470.0,90469.0,5.078e-05]
[1731827380249,0.37704138,90470.0,90469.0,5.078e-05]
[1731827380750,0.44608187,90470.0,90469.0,5.078e-05]
[1731827380953,0.16296705,90470.0,90469.0,5.078e-05]
[1731827381456,0.16297119,90470.0,90469.0,5.078e-05]
[1731827381758,0.1077066,90470.0,90469.0,5.078e-05]
[1731827381957,0.05376776,90470.0,90469.0,5.078e-05]
[1731827382155,0.05376776,90471.0,90469.0,5.078e-05]
[1731827383357,0.10903176,90471.0,90469.0,5.078e-05]
[1731827383546,0.05376776,90470.0,90469.0,5.078e-05]
[1731827385656,0.1650998,90470.0,90469.0,5.078e-05]
[1731827386248,0.055264,90471.0,90469.0,5.078e-05]
[1731827387159,0.05376606,90470.0,90469.0,5.078e-05]
[1731827390853,0.05376644,90470.0,90469.0,5.078e-05]
[1731827391657,0.05376644,90470.0,90466.0,0.0302]
[1731827391658,0.05376644,90470.0,90466.0,0.02225078]
[1731827391866,0.16519517,90467.0,90466.0,0.02225078]
[1731827392167,0.055264,90471.0,90466.0,0.02225078]
[1731827392363,0.05376653,90470.0,90466.0,0.02225078]
[1731827392565,0.16520303,90467.0,90466.0,0.02225078]
[1731827392763,0.06520303,90469.0,90467.0,0.055266]
[1731827392964,0.06520303,90469.0,90468.0,0.0322]
[1731827393151,0.06997835,90474.0,90468.0,0.087465]
[1731827393351,0.05376466,90473.0,90468.0,0.087465]
[1731827393967,0.055264,90471.0,90468.0,0.0322]
[1731827394265,0.055268,90463.0,90460.0,0.00010821]
[1731827394566,0.12524235,90469.0,90461.0,0.055269]
[1731827395766,0.055266,90466.0,90461.0,0.055269]
[1731827395973,0.055266,90466.0,90460.0,0.00010821]
[1731827397465,0.12542899,90469.0,90460.0,0.00010821]
[1731827397765,0.055268,90463.0,90460.0,0.00010821]
[1731827400863,0.19803482,90468.0,90460.0,0.00010821]
[1731827400864,0.055269,90462.0,90460.0,0.00010821]
[1731827402269,0.05377014,90461.0,90460.0,0.00010821]
[1731827402671,0.19803482,90461.0,90460.0,0.00010821]
[1731827402856,0.25180496,90461.0,90460.0,0.00010821]
[1731827404174,0.05377014,90461.0,90460.0,0.00010821]
[1731827404373,0.19845207,90461.0,90460.0,0.00010821]
[1731827404572,0.25222221,90461.0,90460.0,0.00010821]
[1731827404769,0.05377014,90461.0,90460.0,0.00010821]
[1731827406170,0.055269,90462.0,90460.0,0.00010821]
[1731827406171,0.30749121,90462.0,90460.0,0.00010821]
[1731827406375,0.05377014,90461.0,90460.0,0.00010821]
[1731827406565,0.05377014,90461.0,90456.0,0.02490821]
[1731827406768,0.06997835,90458.0,90456.0,0.02490821]
[1731827406968,0.05377014,90457.0,90456.0,0.02490821]
[1731827407864,0.06997835,90458.0,90455.0,0.0301]
[1731827407865,0.32220302,90458.0,90455.0,0.0301]
[1731827408180,0.0537726,90457.0,90455.0,0.0301]
[1731827408363,0.32220302,90458.0,90455.0,0.0301]
[1731827408563,0.32220302,90458.0,90450.0,8.678e-05]
[1731827408564,0.30749667,90457.0,90450.0,8.678e-05]
[1731827408764,0.055275,90451.0,90450.0,8.678e-05]
[1731827408966,0.10904767,90451.0,90450.0,8.678e-05]
[1731827409580,0.25374567,90451.0,90450.0,8.678e-05]
[1731827409763,0.30751834,90451.0,90450.0,8.678e-05]
[1731827409963,0.10904767,90451.0,90450.0,8.678e-05]
[1731827411377,0.16519021,90451.0,90450.0,8.678e-05]
[1731827411567,0.30988821,90451.0,90450.0,8.678e-05]
[1731827411876,0.16519021,90451.0,90450.0,8.678e-05]
[1731827412065,0.30982179,90451.0,90450.0,8.678e-05]
[1731827412265,0.16519021,90451.0,90450.0,8.678e-05]
[1731827412469,0.16519569,90451.0,90450.0,8.678e-05]
[1731827412772,0.36359994,90451.0,90450.0,8.678e-05]
[1731827413172,0.16519569,90451.0,90450.0,8.678e-05]
[1731827414977,0.05377815,90451.0,90450.0,8.678e-05]
[1731827415376,0.36156,90455.0,90450.0,8.678e-05]
[1731827415580,0.05377702,90454.0,90450.0,8.678e-05]
[1731827415784,0.19840425,90460.0,90451.0,0.06997835]
[1731827416078,0.09018,90464.0,90451.0,0.12525335]
[1731827416079,0.1321892,90453.0,90451.0,0.12525335]
[1731827416383,0.1321892,90454.0,90453.0,0.055274]
[1731827416686,0.1321892,90456.0,90455.0,0.055273]
[1731827416870,0.1321892,90457.0,90455.0,0.416073]
[1731827417271,0.1321892,90456.0,90455.0,0.416073]
[1731827417575,0.25367125,90465.0,90455.0,0.3608]
[1731827417779,0.05376978,90464.0,90460.0,0.055269]
[1731827417974,0.055267,90465.0,90460.0,0.055269]
[1731827418376,0.19840425,90470.0,90461.0,0.06997835]
[1731827418565,0.03722365,90475.0,90468.0,0.055265]
[1731827418566,0.055262,90473.0,90468.0,0.055265]
[1731827418765,0.12374275,90472.0,90468.0,0.055265]
[1731827418978,0.0537644,90471.0,90468.0,0.055265]
[1731827419279,0.06997835,90472.0,90468.0,0.055265]
[1731827419582,0.05376377,90471.0,90468.0,0.055265]
[1731827419779,0.05376377,90471.0,90467.0,0.42486]
[1731827419780,0.05376377,90471.0,90470.0,0.055264]
[1731827419980,0.00012365,90475.0,90471.0,0.055263]
[1731827420177,0.05376278,90474.0,90471.0,0.055263]
[1731827420787,0.05376278,90474.0,90472.0,0.055262]
[1731827420982,0.00012365,90475.0,90474.0,0.055261]
[1731827421584,0.00012365,90475.0,90474.0,0.047261]
[1731827422179,0.00012365,90475.0,90471.0,0.06997835]
[1731827422486,0.05538465,90475.0,90471.0,0.06997835]
[1731827422872,0.00012365,90475.0,90471.0,0.06997835]
[1731827423084,0.00012365,90475.0,90472.0,0.055262]
[1731827423479,0.00012365,90475.0,90473.0,0.055261]
[1731827424684,0.055265,90469.0,90467.0,0.0006]
[1731827424886,0.055269,90462.0,90453.0,0.08504]
[1731827425270,0.055269,90462.0,90453.0,0.140314]
[1731827425477,0.18731831,90462.0,90453.0,0.140314]
[1731827425687,0.13204931,90461.0,90453.0,0.140314]
[1731827425989,0.13204931,90461.0,90456.0,0.055272]
[1731827426370,0.13204931,90463.0,90456.0,0.055272]
[1731827426773,0.13204931,90461.0,90456.0,0.06997835]
[1731827426975,0.18731831,90461.0,90456.0,0.06997835]
[1731827427488,0.05527,90460.0,90456.0,0.06997835]
[1731827427682,0.18732031,90459.0,90456.0,0.06997835]
[1731827428390,0.055271,90459.0,90456.0,0.06997835]
[1731827428592,0.18732031,90459.0,90456.0,0.06997835]
[1731827429588,0.055271,90459.0,90456.0,0.06997835]
[1731827429784,0.18732031,90459.0,90456.0,0.06997835]
[1731827430791,0.055272,90457.0,90456.0,0.06997835]
[1731827431095,0.18732131,90457.0,90456.0,0.06997835]
[1731827431271,0.055272,90457.0,90452.0,0.0309]
[1731827431677,0.18732131,90457.0,90452.0,0.0309]
[1731827432783,0.055272,90457.0,90452.0,0.0309]
[1731827433485,0.18732131,90457.0,90452.0,0.0309]
[1731827433688,0.13204931,90457.0,90452.0,0.0309]
[1731827433994,0.16519341,90465.0,90453.0,0.07881835]
[1731827433995,0.13204931,90458.0,90453.0,0.07881835]
[1731827434293,0.16519341,90465.0,90453.0,0.07881835]
[1731827434294,0.055271,90459.0,90453.0,0.07881835]
[1731827434687,0.13204931,90460.0,90458.0,0.055271]
[1731827434904,0.13204931,90461.0,90458.0,0.06997835]
[1731827435192,0.10067835,90474.0,90458.0,0.06997835]
[1731827435193,0.13204931,90462.0,90461.0,0.055269]
[1731827436383,0.13204931,90463.0,90461.0,0.055269]
[1731827436589,0.13204931,90464.0,90461.0,0.05223398]
[1731827436993,0.18731631,90465.0,90461.0,0.05223398]
[1731827437291,0.13204931,90464.0,90458.0,0.43133835]
[1731827437481,0.055268,90463.0,90458.0,0.48604935]
[1731827437882,0.05527,90460.0,90458.0,0.43077835]
[1731827438293,0.05527,90460.0,90458.0,0.3608]
[1731827438494,0.13204931,90460.0,90453.0,0.03974]
[1731827438796,0.055273,90454.0,90453.0,0.00884]
[1731827439587,0.22046641,90454.0,90453.0,0.00884]
[1731827439894,0.055273,90454.0,90453.0,0.00884]
[1731827440285,0.1090509,90454.0,90453.0,0.00884]
[1731827440887,0.16374854,90454.0,90453.0,0.00884]
[1731827441995,0.16374854,90454.0,90453.0,0.00092973]
[1731827447210,0.055291,90425.0,90421.0,0.5593369]
[1731827447500,0.055292,90424.0,90415.0,0.055297]
[1731827448292,0.4466,90431.0,90422.0,9.746e-05]
[1731827448510,0.055288,90430.0,90422.0,9.746e-05]
[1731827448800,0.05529,90428.0,90422.0,9.746e-05]
[1731827449407,0.3616,90431.0,90422.0,9.746e-05]
[1731827449705,0.3608,90431.0,90426.0,0.05529]